bitfinex-derivatives/quotes_BTCF0:USTF0_20250114
["timestamp","ask_amount","ask_price","bid_price","bid_amount"]
[1736881525799,0.051682,96797.0,96796.0,0.412483]
[1736881527796,0.065682,96797.0,96796.0,0.002]
[1736881528497,0.051689,96784.0,96783.0,0.3608]
[1736881528904,0.051692,96778.0,96771.0,0.0313]
[1736881529201,0.051696,96772.0,96771.0,0.0313]
[1736881529788,0.10269422,96781.0,96769.0,0.37107445]
[1736881530100,0.051697,96770.0,96769.0,0.3608]
[1736881530396,0.012,96784.0,96769.0,0.3618]
[1736881530601,0.003,96784.0,96783.0,0.41249]
[1736881531002,0.051689,96784.0,96783.0,0.41349]
[1736881531896,0.054689,96784.0,96783.0,0.3608]
[1736881532892,0.051692,96778.0,96777.0,0.18488079]
[1736881533195,0.0312,96783.0,96770.0,0.18488079]
[1736881533400,0.051696,96771.0,96770.0,0.18488079]
[1736881533703,0.051696,96771.0,96770.0,0.23657779]
[1736881534103,0.051696,96771.0,96770.0,0.051697]
[1736881534799,0.052696,96771.0,96770.0,0.051697]
[1736881535098,0.004,96771.0,96770.0,0.052697]
[1736881535299,0.055696,96771.0,96770.0,0.052697]
[1736881539005,0.004,96771.0,96770.0,0.052697]
[1736881539904,0.051682,96799.0,96795.0,0.051683]
[1736881540098,0.00155023,96804.0,96793.0,0.3608]
[1736881540301,0.00155023,96804.0,96803.0,0.412479]
[1736881540495,0.0641,96829.0,96812.0,0.051674]
[1736881540701,0.3288355,96821.0,96812.0,0.412474]
[1736881540907,0.3288355,96821.0,96812.0,0.413474]
[1736881541405,0.2771655,96821.0,96812.0,0.413474]
[1736881541605,0.051663,96833.0,96829.0,0.051665]
[1736881541812,0.051663,96833.0,96832.0,0.412464]
[1736881542001,0.051663,96833.0,96832.0,0.3608]
[1736881543707,0.052663,96833.0,96832.0,0.3608]
[1736881544109,0.055663,96833.0,96832.0,0.3608]
[1736881546911,0.051666,96828.0,96827.0,0.051666]
[1736881547308,0.004,96833.0,96832.0,0.051664]
[1736881547620,0.055663,96833.0,96832.0,0.051664]
[1736881548106,0.052663,96833.0,96832.0,0.051664]
[1736881548307,0.001,96833.0,96830.0,0.3608]
[1736881548511,0.001,96833.0,96805.0,0.18488079]
[1736881548708,0.051677,96806.0,96805.0,0.18488079]
[1736881549111,0.051677,96806.0,96805.0,0.03518079]
[1736881549906,0.0965,96812.0,96778.0,0.3937]
[1736881549907,0.051684,96793.0,96778.0,0.3937]
[1736881550213,0.051684,96793.0,96779.0,0.051692]
[1736881550518,0.051691,96780.0,96779.0,0.051692]
[1736881551409,0.051692,96779.0,96778.0,0.3937]
[1736881551617,0.051692,96779.0,96778.0,0.3608]
[1736881552017,0.051692,96779.0,96771.0,0.0322]
[1736881552418,0.051698,96768.0,96767.0,0.3608]
[1736881553810,0.051698,96768.0,96767.0,0.3638]
[1736881554015,0.051698,96768.0,96767.0,0.3688]
[1736881554016,0.052698,96768.0,96767.0,0.3688]
[1736881554215,0.052698,96768.0,96767.0,0.008]
[1736881555021,0.3618,96768.0,96739.0,0.3608]
[1736881555210,0.051711,96745.0,96743.0,0.051711]
[1736881555406,0.001,96768.0,96754.0,0.051705]
[1736881555617,0.051701,96762.0,96761.0,0.3608]
[1736881556414,0.051705,96755.0,96754.0,0.3608]
[1736881556604,0.051705,96755.0,96754.0,0.3698]
[1736881557111,0.051705,96755.0,96754.0,0.3608]
[1736881557621,0.052705,96755.0,96754.0,0.3658]
[1736881557818,0.053705,96755.0,96754.0,0.3748]
[1736881562014,0.002,96755.0,96754.0,0.427505]
[1736881562215,0.051693,96777.0,96754.0,1.8758]
[1736881562412,0.051698,96768.0,96767.0,0.3608]
[1736881562613,0.051693,96777.0,96761.0,0.084801]
[1736881562823,0.051699,96765.0,96762.0,0.3608]
[1736881563220,0.051699,96765.0,96763.0,0.001]
[1736881563422,0.002,96774.0,96763.0,0.001]
[1736881563617,0.051695,96773.0,96772.0,0.412496]
[1736881563927,0.002,96774.0,96773.0,0.051695]
[1736881564113,0.051692,96779.0,96772.0,0.3608]
[1736881564114,0.051679,96803.0,96772.0,0.3618]
[1736881564311,0.2208,96808.0,96782.0,0.3608]
[1736881564524,0.05169,96783.0,96782.0,0.3608]
[1736881565721,0.051688,96788.0,96786.0,0.051688]
[1736881565912,0.051687,96788.0,96787.0,0.0318]
[1736881566916,0.052687,96788.0,96787.0,0.0318]
[1736881567519,0.051687,96788.0,96787.0,0.0368]
[1736881568131,0.051687,96788.0,96787.0,0.0378]
[1736881569415,0.051684,96794.0,96792.0,0.051685]
[1736881569620,0.01022352,96810.0,96793.0,0.3608]
[1736881569921,0.051679,96803.0,96802.0,0.3608]
[1736881570229,0.051679,96803.0,96802.0,0.41248]
[1736881571026,0.053679,96803.0,96802.0,0.41248]
[1736881571620,0.01022144,96820.0,96802.0,0.3608]
[1736881571826,0.3608,96830.0,96812.0,0.3608]
[1736881572026,0.051673,96814.0,96813.0,0.0305]
[1736881572728,0.3608,96830.0,96813.0,0.0305]
[1736881573027,0.051668,96823.0,96822.0,0.3608]
[1736881574433,0.051668,96823.0,96822.0,0.3618]
[1736881577734,0.051668,96823.0,96822.0,0.413469]
[1736881577931,0.051668,96823.0,96822.0,0.3618]
[1736881579634,0.00154968,96838.0,96822.0,0.3618]
[1736881579840,0.051661,96836.0,96835.0,0.051662]
[1736881580036,0.051663,96834.0,96833.0,0.082661]
[1736881580438,0.051663,96834.0,96833.0,0.083661]
[1736881581447,0.056663,96834.0,96833.0,0.084661]
[1736881582245,0.055663,96834.0,96833.0,0.083661]
[1736881582654,0.055663,96834.0,96833.0,0.082661]
[1736881582859,0.055663,96834.0,96833.0,0.031]
[1736881583363,0.056663,96834.0,96833.0,0.082663]
[1736881583551,0.056663,96834.0,96833.0,0.031]
[1736881584363,0.056663,96834.0,96833.0,0.082663]
[1736881588257,0.056663,96834.0,96833.0,0.09310569]
[1736881588955,0.005,96834.0,96833.0,0.09410569]
[1736881590155,0.056663,96834.0,96833.0,0.09410569]
[1736881590464,0.056663,96834.0,96833.0,0.031]
[1736881594167,0.051663,96833.0,96832.0,0.00788]
[1736881594370,0.051668,96823.0,96814.0,0.084573]
[1736881594868,0.051676,96808.0,96807.0,0.3608]
[1736881595963,0.052676,96808.0,96807.0,0.3668]
[1736881596163,0.052676,96808.0,96807.0,0.3708]
[1736881596557,0.051676,96808.0,96807.0,0.418477]
[1736881597967,0.051676,96808.0,96807.0,0.3668]
[1736881598268,0.051676,96808.0,96807.0,0.3628]
[1736881598970,0.051676,96808.0,96807.0,0.3618]
[1736881599161,0.051676,96808.0,96807.0,0.3628]
[1736881600061,0.051676,96808.0,96807.0,0.002]
[1736881600261,0.412476,96808.0,96807.0,0.002]
[1736881600667,0.051676,96808.0,96807.0,0.002]
[1736881601363,0.18751649,96808.0,96807.0,0.002]
[1736881602471,0.11157732,96808.0,96807.0,0.002]
[1736881603170,0.051676,96808.0,96807.0,0.002]
[1736881604572,0.11157732,96808.0,96807.0,0.002]
[1736881605672,0.051676,96808.0,96807.0,0.002]
[1736881609171,0.051676,96808.0,96807.0,0.414477]
[1736881609770,0.051676,96808.0,96807.0,0.3628]
[1736881612468,0.412476,96808.0,96807.0,0.002]
[1736881613777,0.051676,96808.0,96807.0,0.002]
[1736881614177,0.11157578,96808.0,96807.0,0.3628]
[1736881615374,0.051676,96808.0,96807.0,0.3628]
[1736881617776,0.11157277,96808.0,96807.0,0.3628]
[1736881619588,0.11157277,96808.0,96807.0,0.414477]
[1736881619884,0.24656062,96818.0,96807.0,0.3628]
[1736881620090,0.29823162,96818.0,96817.0,0.412472]
[1736881620480,0.24656062,96818.0,96817.0,0.412472]
[1736881620689,0.14676062,96818.0,96817.0,0.412472]
[1736881620884,0.19843162,96818.0,96817.0,0.412472]
[1736881621181,0.14676062,96818.0,96817.0,0.412472]
[1736881621384,0.051668,96825.0,96824.0,0.051668]
[1736881621586,0.051658,96844.0,96827.0,0.051666]
[1736881621587,0.051664,96831.0,96827.0,0.051666]
[1736881622289,0.2771655,96858.0,96827.0,0.6618]
[1736881622586,0.3288155,96858.0,96857.0,0.3608]
[1736881622782,0.3288155,96858.0,96857.0,0.41245]
[1736881623390,0.05165,96858.0,96857.0,0.41245]
[1736881623792,0.05365,96858.0,96857.0,0.41245]
[1736881623986,0.05365,96858.0,96857.0,0.3608]
[1736881624582,0.05865,96858.0,96857.0,0.3618]
[1736881625290,0.05665,96858.0,96857.0,0.3618]
[1736881625493,0.06565,96858.0,96857.0,0.42504512]
[1736881626577,0.06565,96858.0,96857.0,0.37339512]
[1736881626782,0.06565,96858.0,96857.0,0.3628]
[1736881631508,0.07612503,96858.0,96857.0,0.3628]
[1736881633503,0.43692503,96858.0,96857.0,0.002]
[1736881634315,0.43692503,96858.0,96830.0,0.412464]
[1736881634610,0.051664,96832.0,96831.0,0.051664]
[1736881634812,0.051664,96831.0,96830.0,0.3608]
[1736881635603,0.051674,96813.0,96812.0,0.3939]
[1736881635803,0.051674,96813.0,96804.0,0.60700222]
[1736881636004,0.051678,96805.0,96804.0,0.60700222]
[1736881636211,0.051678,96805.0,96804.0,0.412479]
[1736881637203,0.051678,96805.0,96804.0,0.3608]
[1736881638311,0.052678,96805.0,96804.0,0.3658]
[1736881638914,0.052678,96805.0,96804.0,0.3698]
[1736881656222,0.051676,96809.0,96808.0,0.051676]
[1736881656524,0.051678,96805.0,96804.0,0.422478]
[1736881656722,0.051678,96805.0,96804.0,0.3698]
[1736881658418,0.051678,96805.0,96804.0,0.3648]
[1736881658818,0.051678,96805.0,96804.0,0.3608]
[1736881659415,0.06204038,96805.0,96804.0,0.3608]
[1736881659620,0.06304038,96805.0,96804.0,0.3718]
[1736881659824,0.052678,96805.0,96804.0,0.3718]
[1736881672727,0.052678,96805.0,96804.0,0.423479]
[1736881673119,0.052678,96805.0,96804.0,0.43405022]
[1736881673431,0.0331,96821.0,96804.0,0.38337122]
[1736881673631,0.051669,96821.0,96820.0,0.41247]
[1736881674426,0.051669,96821.0,96820.0,0.3608]
[1736881674824,0.052669,96821.0,96820.0,0.3608]
[1736881675430,0.051669,96821.0,96820.0,0.3628]
[1736881675625,0.11155561,96821.0,96820.0,0.3638]
[1736881677037,0.11155561,96821.0,96820.0,0.003]
[1736881678937,0.18748414,96821.0,96820.0,0.003]
[1736881680236,0.051669,96821.0,96820.0,0.003]
[1736881683436,0.051669,96821.0,96804.0,0.3608]
[1736881683735,0.051678,96805.0,96804.0,0.3608]
[1736881684336,0.051662,96836.0,96818.0,0.051669]
[1736881684530,0.051668,96823.0,96822.0,0.412469]
[1736881684840,0.051666,96828.0,96827.0,0.051666]
[1736881685031,0.00154969,96830.0,96823.0,0.051668]
[1736881685234,0.051668,96826.0,96825.0,0.051667]
[1736881685434,0.051668,96826.0,96822.0,0.4258]
[1736881685435,0.051668,96823.0,96822.0,0.476468]
[1736881685755,0.051668,96823.0,96822.0,0.475068]
[1736881686943,0.051668,96823.0,96822.0,0.48524615]
[1736881687137,0.051668,96823.0,96822.0,0.48624615]
[1736881687828,0.051668,96823.0,96822.0,0.48724615]
[1736881692648,0.051667,96828.0,96827.0,0.051666]
[1736881694539,0.052667,96828.0,96827.0,0.051666]
[1736881696543,0.001,96828.0,96827.0,0.051666]
[1736881696943,0.051656,96847.0,96834.0,0.051662]
[1736881697243,0.051656,96847.0,96846.0,0.051656]
[1736881697441,0.051656,96847.0,96842.0,0.3608]
[1736881697442,0.0319,96859.0,96843.0,0.3608]
[1736881697756,0.051653,96852.0,96851.0,0.051652]
[1736881697942,0.051653,96852.0,96851.0,0.412452]
[1736881699843,0.002,96854.0,96853.0,0.051652]
[1736881700249,0.053652,96854.0,96853.0,0.051652]
[1736881700450,0.002,96854.0,96853.0,0.051652]
[1736881700846,0.01045514,96867.0,96851.0,0.3608]
[1736881700847,0.051651,96857.0,96851.0,0.3608]
[1736881701054,0.051651,96857.0,96856.0,0.051651]
[1736881701444,0.051648,96862.0,96861.0,0.051647]
[1736881701642,0.051648,96862.0,96861.0,0.412447]
[1736881701949,0.051646,96866.0,96861.0,0.3608]
[1736881702143,0.3608,96898.0,96861.0,0.3618]
[1736881702353,0.051634,96888.0,96882.0,0.051637]
[1736881702556,0.0624,96898.0,96882.0,0.051637]
[1736881702759,0.051634,96887.0,96882.0,0.051637]
[1736881703253,0.051635,96885.0,96882.0,0.051637]
[1736881703457,0.051634,96889.0,96882.0,0.051637]
[1736881703651,0.051634,96888.0,96882.0,0.051637]
[1736881704453,0.00654912,96883.0,96882.0,0.051637]
[1736881704849,0.00654912,96883.0,96882.0,1.551637]
[1736881705049,0.051629,96898.0,96882.0,1.553637]
[1736881705257,0.051629,96898.0,96896.0,0.051629]
[1736881705653,0.051629,96897.0,96896.0,0.051629]
[1736881707352,0.055629,96897.0,96896.0,0.412429]
[1736881708554,0.064629,96897.0,96896.0,0.413429]
[1736881711860,0.3608,96928.0,96896.0,0.3628]
[1736881712059,0.3608,96928.0,96916.0,0.051619]
[1736881712060,0.051619,96917.0,96916.0,0.051619]
[1736881712364,0.051619,96917.0,96916.0,1.551619]
[1736881713764,0.052619,96917.0,96916.0,1.551619]
[1736881715169,0.054619,96917.0,96916.0,0.051619]
[1736881716766,0.051619,96916.0,96915.0,0.3608]
[1736881717269,0.003,96917.0,96916.0,0.051619]
[1736881717768,0.003,96917.0,96916.0,0.052619]
[1736881717975,0.001,96917.0,96916.0,0.052619]
[1736881718562,0.00154844,96921.0,96920.0,0.051617]
[1736881719166,0.00154844,96921.0,96920.0,1.551617]
[1736881719770,0.00154844,96921.0,96920.0,0.051617]
[1736881720770,0.00454844,96921.0,96920.0,0.051617]
[1736881721270,0.05616444,96921.0,96920.0,0.051617]
[1736881721675,0.05616444,96921.0,96915.0,0.412419]
[1736881721676,0.051619,96916.0,96915.0,0.412419]
[1736881721975,0.051619,96916.0,96871.0,0.051642]
[1736881721976,0.051619,96916.0,96906.0,0.3608]
[1736881722275,0.051624,96907.0,96906.0,0.3608]
[1736881722469,0.051624,96907.0,96901.0,0.001]
[1736881722672,0.051628,96899.0,96898.0,0.3608]
[1736881723070,0.051628,96899.0,96887.0,0.3608]
[1736881723071,0.051634,96888.0,96887.0,0.3608]
[1736881723476,0.051634,96888.0,96887.0,0.3109]
[1736881723681,0.051639,96878.0,96877.0,0.3608]
[1736881724984,0.051639,96878.0,96877.0,0.3638]
[1736881725986,0.051639,96878.0,96877.0,0.3658]
[1736881727088,0.051639,96878.0,96877.0,1.8658]
[1736881727480,0.051639,96878.0,96877.0,1.8628]
[1736881727683,0.051639,96878.0,96877.0,1.8648]
[1736881727984,0.051639,96878.0,96877.0,1.8628]
[1736881728185,0.051639,96878.0,96877.0,1.8648]
[1736881728778,0.051639,96878.0,96877.0,1.8638]
[1736881728986,0.051639,96878.0,96877.0,1.503]
[1736881730491,0.051639,96878.0,96877.0,1.501]
[1736881731889,0.051639,96878.0,96877.0,1.503]
[1736881732088,0.051639,96878.0,96877.0,1.502]
[1736881732984,0.051639,96878.0,96877.0,1.503]
[1736881733190,0.051639,96878.0,96877.0,1.504]
[1736881733493,0.0633,96885.0,96877.0,1.504]
[1736881733683,0.051639,96878.0,96877.0,1.504]
[1736881734398,0.051639,96878.0,96877.0,1.501]
[1736881734589,0.051639,96878.0,96877.0,1.502]
[1736881735496,0.051639,96878.0,96877.0,1.503]
[1736881736283,0.051639,96878.0,96877.0,1.502]
[1736881739098,0.051639,96878.0,96877.0,1.8628]
[1736881740398,0.051639,96878.0,96877.0,1.91444]
[1736881740604,0.05173108,96888.0,96887.0,0.051634]
[1736881740796,0.05173108,96888.0,96887.0,0.412434]
[1736881741494,0.05173108,96888.0,96887.0,0.42290655]
[1736881741898,0.05473108,96888.0,96887.0,0.42290655]
[1736881742498,0.05573108,96888.0,96887.0,0.42290655]
[1736881743203,0.05473108,96888.0,96887.0,0.42390655]
[1736881743802,0.05173108,96888.0,96887.0,0.42390655]
[1736881744499,0.05173108,96888.0,96887.0,0.3618]
[1736881744700,0.051639,96878.0,96877.0,0.3608]
[1736881746004,0.051639,96878.0,96877.0,0.41244]
[1736881746306,0.051639,96878.0,96877.0,0.41444]
[1736881746508,0.051639,96878.0,96877.0,0.3628]
[1736881747298,0.051639,96878.0,96877.0,0.3668]
[1736881747694,0.051639,96878.0,96877.0,0.006]
[1736881747896,0.05165,96858.0,96857.0,0.36234855]
[1736881748994,0.3608,96880.0,96857.0,0.36334855]
[1736881749308,0.051645,96866.0,96865.0,0.412446]
[1736881751304,0.051645,96866.0,96865.0,0.3648]
[1736881751901,0.051645,96866.0,96865.0,0.3668]
[1736881754810,0.051645,96866.0,96865.0,0.006]
[1736881758005,0.051657,96844.0,96843.0,0.18481814]
[1736881758212,0.051657,96844.0,96828.0,0.051665]
[1736881758213,0.051658,96842.0,96841.0,0.18481814]
[1736881759307,0.051658,96842.0,96841.0,0.23647714]
[1736881759497,0.051658,96842.0,96841.0,0.051659]
[1736881759896,0.051658,96842.0,96841.0,0.053659]
[1736881760411,0.051658,96842.0,96841.0,0.051659]
[1736881760601,0.051658,96842.0,96841.0,0.055659]
[1736881761110,0.051658,96842.0,96841.0,0.053659]
[1736881761603,0.051658,96842.0,96841.0,0.004]
[1736881762202,0.051658,96842.0,96821.0,0.0106078]
[1736881762403,0.051663,96834.0,96821.0,0.0106078]
[1736881762609,0.051663,96834.0,96819.0,0.18481814]
[1736881762806,0.051663,96834.0,96820.0,0.05167]
[1736881763012,0.051663,96834.0,96820.0,0.15418415]
[1736881763307,0.051663,96834.0,96833.0,0.006549]
[1736881765015,0.051663,96834.0,96833.0,0.008549]
[1736881765809,0.051663,96834.0,96833.0,0.369349]
[1736881766312,0.051663,96834.0,96833.0,0.421012]
[1736881766813,0.051663,96834.0,96833.0,0.43134244]
[1736881767317,0.051663,96834.0,96833.0,0.421012]
[1736881769409,0.051663,96834.0,96833.0,0.060212]
[1736881769609,0.051663,96834.0,96833.0,0.421012]
[1736881770016,0.051663,96834.0,96833.0,0.369349]
[1736881770619,0.051663,96834.0,96833.0,0.008549]
[1736881779925,0.3608,96834.0,96803.0,0.3608]
[1736881780222,0.051677,96806.0,96803.0,0.36228]
[1736881780420,0.051677,96806.0,96803.0,0.3608]
[1736881781023,0.051677,96806.0,96805.0,0.19381814]
[1736881781216,0.051677,96806.0,96805.0,0.016]
[1736881781414,0.051677,96806.0,96805.0,0.007]
[1736881781615,0.052677,96806.0,96805.0,0.016]
[1736881781922,0.052677,96806.0,96805.0,0.067678]
[1736881782719,0.053677,96806.0,96805.0,0.067678]
[1736881783019,0.053677,96806.0,96805.0,0.016]
[1736881785225,0.002,96806.0,96805.0,0.067678]
[1736881785526,0.051669,96822.0,96821.0,0.051669]
[1736881785715,0.05166,96839.0,96821.0,0.051669]
[1736881785716,0.051667,96827.0,96826.0,0.051667]
[1736881785913,0.051667,96827.0,96826.0,1.5]
[1736881786324,0.051667,96827.0,96822.0,0.0617]
[1736881786521,0.051668,96825.0,96824.0,0.051667]
[1736881787926,0.052668,96825.0,96824.0,0.059667]
[1736881788525,0.051661,96839.0,96838.0,0.051659]
[1736881788724,0.051661,96839.0,96838.0,0.412459]
[1736881789225,0.051658,96844.0,96843.0,0.051656]
[1736881790716,0.051658,96844.0,96843.0,0.052656]
[1736881791228,0.051658,96844.0,96843.0,0.001]
[1736881792828,0.051658,96844.0,96843.0,0.052658]
[1736881793929,0.051658,96844.0,96843.0,0.001]
[1736881794628,0.06206897,96844.0,96843.0,0.001]
[1736881795827,0.051658,96844.0,96843.0,0.001]
[1736881796221,0.083749,96860.0,96849.0,0.051655]
[1736881796423,0.051654,96850.0,96849.0,0.051655]
[1736881796630,0.051654,96850.0,96849.0,0.412455]
[1736881797730,0.054654,96850.0,96849.0,0.412455]
[1736881798322,0.055654,96850.0,96849.0,0.412455]
[1736881798927,0.054654,96850.0,96849.0,0.412455]
[1736881799128,0.054654,96850.0,96849.0,0.414455]
[1736881799326,0.051654,96850.0,96849.0,0.3628]
[1736881799631,0.051654,96850.0,96849.0,0.3668]
[1736881799829,0.051654,96850.0,96849.0,0.3628]
[1736881800030,0.051654,96850.0,96849.0,0.3668]
[1736881801628,0.051636,96883.0,96860.0,0.051649]
[1736881801841,0.051643,96872.0,96871.0,0.051642]
[1736881802841,0.36234872,96882.0,96866.0,0.412445]
[1736881802842,0.051645,96867.0,96866.0,0.412445]
[1736881803040,0.051645,96867.0,96866.0,0.3608]
[1736881803848,0.051645,96867.0,96866.0,0.412445]
[1736881805651,0.051645,96867.0,96866.0,0.3658]
[1736881805844,0.051645,96867.0,96866.0,0.417445]
[1736881806042,0.051645,96867.0,96866.0,0.414445]
[1736881806349,0.051645,96867.0,96866.0,0.417445]
[1736881806647,0.051645,96867.0,96866.0,0.414445]
[1736881806844,0.00154872,96882.0,96866.0,0.7266]
[1736881807046,0.33650924,96930.0,96881.0,0.3608]
[1736881807360,0.33650924,96930.0,96906.0,0.051624]
[1736881807361,0.00154831,96908.0,96906.0,0.051624]
[1736881807542,0.05317131,96908.0,96907.0,0.3608]
[1736881808648,0.051625,96905.0,96903.0,0.051626]
[1736881809853,0.051628,96899.0,96897.0,0.3608]
[1736881810448,0.051628,96899.0,96888.0,0.3608]
[1736881810449,0.051633,96889.0,96888.0,0.3608]
[1736881811744,0.3608,96889.0,96878.0,0.3608]
[1736881811955,0.051635,96886.0,96878.0,0.3608]
[1736881818468,0.052635,96886.0,96878.0,0.3608]
[1736881818954,0.051639,96878.0,96865.0,0.3608]
[1736881819156,0.001,96886.0,96857.0,0.18441246]
[1736881819157,0.051645,96866.0,96857.0,0.18441246]
[1736881819353,0.05165,96858.0,96857.0,0.18441246]
[1736881820053,0.051651,96856.0,96855.0,0.3608]
[1736881821360,0.051651,96856.0,96855.0,0.412451]
[1736881821951,0.051651,96856.0,96855.0,0.414451]
[1736881822658,0.051651,96856.0,96855.0,0.418451]
[1736881824063,0.051651,96856.0,96855.0,0.3668]
[1736881824260,0.3608,96878.0,96856.0,0.051651]
[1736881824456,0.05164,96877.0,96876.0,0.3608]
[1736881824651,0.05164,96877.0,96876.0,0.44504]
[1736881825652,0.05664,96877.0,96876.0,0.3934]
[1736881825855,0.05664,96877.0,96876.0,0.3608]
[1736881826051,0.051643,96871.0,96870.0,1.5014]
[1736881826258,0.051643,96871.0,96870.0,1.5]
[1736881828458,0.051643,96871.0,96870.0,1.501]
[1736881829365,0.051643,96871.0,96870.0,1.502]
[1736881829555,0.051643,96871.0,96870.0,1.501]
[1736881829768,0.051643,96871.0,96870.0,1.502]
[1736881831062,0.051643,96871.0,96870.0,0.002]
[1736881831265,0.051651,96856.0,96848.0,0.3608]
[1736881831570,0.051653,96852.0,96848.0,0.3608]
[1736881831866,0.412453,96852.0,96838.0,0.19467615]
[1736881832061,0.3608,96852.0,96838.0,0.19467615]
[1736881832271,0.05166,96839.0,96838.0,0.19467615]
[1736881832668,0.05166,96839.0,96838.0,0.18441246]
[1736881832855,0.051666,96827.0,96826.0,0.3608]
[1736881833257,0.3608,96835.0,96816.0,0.54521246]
[1736881833464,0.051672,96817.0,96816.0,0.54521246]
[1736881833773,0.412472,96817.0,96816.0,0.18441246]
[1736881834269,0.051674,96812.0,96811.0,0.00154937]
[1736881835868,0.052674,96812.0,96811.0,0.00754937]
[1736881837564,0.053674,96812.0,96811.0,0.01654937]
[1736881843476,0.053674,96812.0,96811.0,0.06822437]
[1736881844776,0.06186504,96825.0,96811.0,0.06822437]
[1736881844978,0.051668,96824.0,96815.0,0.3608]
[1736881845276,0.051674,96812.0,96811.0,0.01654937]
[1736881846777,0.051674,96812.0,96811.0,0.37734937]
[1736881847071,0.051674,96812.0,96811.0,0.36834937]
[1736881847274,0.051674,96812.0,96811.0,0.37734937]
[1736881847670,0.051674,96812.0,96811.0,0.42002437]
[1736881847872,0.053674,96812.0,96811.0,0.42902437]
[1736881848474,0.053674,96812.0,96811.0,0.37734937]
[1736881849073,0.414474,96812.0,96811.0,0.01654937]
[1736881849775,0.42465798,96812.0,96811.0,0.01654937]
[1736881851580,0.42465798,96812.0,96811.0,0.015]
[1736881852179,0.414474,96812.0,96811.0,0.015]
[1736881852387,0.053674,96812.0,96811.0,0.015]
[1736881855272,0.053674,96812.0,96811.0,0.066675]
[1736881855580,0.053674,96812.0,96811.0,0.015]
[1736881859880,0.053674,96812.0,96811.0,0.19941246]
[1736881860879,0.053674,96812.0,96811.0,0.015]
[1736881861283,0.053674,96812.0,96811.0,0.066675]
[1736881863283,0.053674,96812.0,96811.0,0.015]
[1736881874085,0.053674,96812.0,96811.0,0.066675]
[1736881874695,0.002,96812.0,96811.0,0.066675]
[1736881874895,0.053674,96812.0,96811.0,0.066675]
[1736881877495,0.002,96812.0,96811.0,0.066675]
[1736881877705,0.051674,96813.0,96812.0,0.051672]
[1736881879398,0.051674,96812.0,96811.0,0.015]
[1736881880001,0.051674,96812.0,96811.0,0.009]
[1736881880199,0.051675,96810.0,96809.0,0.31022286]
[1736881880400,0.051675,96810.0,96809.0,0.30882286]
[1736881880698,0.051675,96810.0,96806.0,0.18552688]
[1736881880897,0.051677,96807.0,96806.0,0.18552688]
[1736881882202,0.05168,96801.0,96800.0,0.1]
[1736881883201,0.11158151,96801.0,96800.0,0.1]
[1736881883904,0.11358151,96801.0,96800.0,0.115]
[1736881885002,0.05368,96801.0,96800.0,0.115]
[1736881885405,0.002,96801.0,96800.0,0.166681]
[1736881885599,0.24600707,96817.0,96800.0,0.1776]
[1736881885800,0.051675,96812.0,96811.0,0.051674]
[1736881886106,0.051675,96812.0,96811.0,0.412474]
[1736881886400,0.3608,96826.0,96811.0,0.3618]
[1736881886601,0.412468,96826.0,96825.0,0.051667]
[1736881887600,0.052668,96826.0,96825.0,0.051667]
[1736881888002,0.051668,96826.0,96825.0,0.052667]
[1736881889506,0.051668,96826.0,96825.0,0.054667]
[1736881889808,0.051668,96826.0,96825.0,0.057667]
[1736881890197,0.051668,96826.0,96825.0,0.059667]
[1736881891197,0.051668,96826.0,96825.0,0.054667]
[1736881891398,0.051668,96826.0,96825.0,0.057667]
[1736881892704,0.051668,96826.0,96825.0,0.056667]
[1736881892903,0.051668,96826.0,96825.0,0.057667]
[1736881893302,0.051668,96826.0,96825.0,0.004]
[1736881893611,0.0432991,96833.0,96825.0,0.004]
[1736881893810,0.051667,96826.0,96825.0,0.004]
[1736881894002,0.051667,96826.0,96825.0,0.002]
[1736881894202,0.051667,96826.0,96825.0,0.004]
[1736881896609,0.051667,96826.0,96825.0,0.002]
[1736881896811,0.051667,96826.0,96825.0,0.004]
[1736881899803,0.051667,96826.0,96825.0,0.002]
[1736881900108,0.051667,96826.0,96825.0,0.005]
[1736881900607,0.051667,96826.0,96825.0,0.3658]
[1736881900811,0.05320648,96846.0,96845.0,0.051657]
[1736881901113,0.00154948,96846.0,96845.0,0.412457]
[1736881902008,0.01033964,96864.0,96845.0,0.37111062]
[1736881902204,0.051655,96849.0,96845.0,0.37111062]
[1736881902408,0.051655,96849.0,96848.0,0.051655]
[1736881903307,0.052655,96849.0,96848.0,0.051655]
[1736881903909,0.053655,96849.0,96848.0,0.051655]
[1736881905514,0.053655,96849.0,96845.0,0.37111062]
[1736881905515,0.051656,96846.0,96845.0,0.37111062]
[1736881905716,0.051656,96846.0,96845.0,0.3608]
[1736881906707,0.051656,96846.0,96845.0,0.3618]
[1736881907111,0.053656,96846.0,96845.0,0.3618]
[1736881910215,0.002,96846.0,96845.0,0.413457]
[1736881911215,0.002,96846.0,96845.0,0.42473448]
[1736881911410,0.10256356,96880.0,96845.0,0.42473448]
[1736881911411,0.60744,96877.0,96860.0,0.051647]
[1736881911719,0.051643,96871.0,96870.0,0.3608]
[1736881912115,0.051643,96871.0,96870.0,0.412443]
[1736881912321,0.0319,96876.0,96874.0,0.051641]
[1736881912716,0.051641,96875.0,96874.0,0.051641]
[1736881913912,0.052641,96875.0,96874.0,0.051641]
[1736881922023,0.001,96875.0,96874.0,0.051641]